fUSD/lending_fUSD_20240815
["ID","MTS","AMOUNT","RATE_DAILY","PERIOD"]
[334969318,1723690239295,-1000.0,0.00023638,2]
[334969319,1723690239305,-1000.0,0.00023638,3]
[334969320,1723690239314,-1000.0,0.00023638,5]
[334969321,1723690239323,-1000.0,0.00023638,3]
[334969322,1723690239332,-1000.0,0.00023638,2]
[334969323,1723690239342,-1000.0,0.00023638,2]
[334969324,1723690239352,-1000.0,0.00023638,2]
[334969325,1723690239362,-1000.0,0.00023638,3]
[334969326,1723690239371,-1000.0,0.00023638,3]
[334969327,1723690239380,-1000.0,0.00023638,2]
[334969328,1723690239390,-1039.44,0.00023638,3]
[334969329,1723690239399,-1764.72554699,0.00023646,2]
[334969330,1723690239409,-1764.72554699,0.00023646,2]
[334969331,1723690239419,-150.0,0.00023648,2]
[334969332,1723690239429,-912.75,0.00023671,2]
[334969333,1723690239439,-712.54,0.00023671,2]
[334969334,1723690239449,-500.0,0.000237,8]
[334969335,1723690239459,-4559.0140904,0.0002379,4]
[334969336,1723690239469,-1100.0,0.000238,8]
[334969337,1723690239478,-346.4684926,0.000238,2]
[334969338,1723690239488,-943.0,0.00023814,2]
[334969339,1723690239497,-153.029081,0.0002389,7]
[334969341,1723690239507,-151.0,0.0002389,7]
[334969342,1723690239516,-27354.0845424,0.0002389,4]
[334969343,1723690239525,-151.0,0.0002389,7]
[334969344,1723690239534,-151.0,0.0002389,7]
[334969345,1723690239543,-151.0,0.0002389,7]
[334969346,1723690239552,-258.759296,0.0002389,7]
[334969347,1723690239562,-150.85429359,0.00023898,31]
[334969348,1723690239571,-1955.00229173,0.000239,2]
[334969349,1723690239581,-151.0,0.000239,7]
[334969350,1723690239594,-236.55478,0.000239,7]
[334969351,1723690239609,-151.0,0.000239,7]
[334969352,1723690239618,-151.941505,0.000239,7]
[334969353,1723690239627,-151.0,0.000239,7]
[334969354,1723690239636,-151.0,0.000239,7]
[334969355,1723690239646,-151.0,0.000239,7]
[334969356,1723690239655,-151.0,0.000239,7]
[334969357,1723690239665,-151.0,0.000239,7]
[334969358,1723690239675,-1700.0,0.000239,8]
[334969359,1723690239684,-49000.06547583,0.000239,6]
[334969360,1723690239694,-368.578432,0.000239,7]
[334969361,1723690239703,-368.578432,0.000239,7]
[334969362,1723690239712,-151.0,0.000239,7]
[334969363,1723690239722,-253.318822,0.000239,7]
[334969364,1723690239734,-10.54909414,0.000239,7]
[334969419,1723690243288,-979.18975013,0.00010888,2]
[334969424,1723690243300,-760.53798217,0.00010888,2]
[334969428,1723690243309,-2169.44535783,0.00010989,2]
[334969449,1723690245820,-760.8200004,0.00010989,2]
[334969450,1723690246058,-2474.01479965,0.00010989,2]
[334969451,1723690246067,-164.77,0.00012,2]
[334969452,1723690246077,-164.77,0.00012,2]
[334969453,1723690246086,-164.77,0.00012,2]
[334969454,1723690246095,-164.77,0.00012,2]
[334969455,1723690246104,-164.77,0.00012,2]
[334969456,1723690246115,-164.77,0.00012,2]
[334969457,1723690246124,-164.77,0.00012,2]
[334969458,1723690246133,-164.77,0.00012,2]
[334969459,1723690246142,-164.77,0.00012,2]
[334969460,1723690246151,-164.77,0.00012,2]
[334969461,1723690246160,-164.77,0.00012,2]
[334969462,1723690246169,-164.77,0.00012,2]
[334969463,1723690246178,-164.77,0.00012,2]
[334969464,1723690246187,-164.77,0.00012,2]
[334969465,1723690246196,-164.77,0.00012,2]
[334969466,1723690246206,-164.77,0.00012,2]
[334969467,1723690246215,-164.77,0.00012,2]
[334969468,1723690246224,-164.77,0.00012,2]
[334969469,1723690246233,-164.77,0.00012,2]
[334969470,1723690246242,-164.77,0.00012,2]
[334969471,1723690246251,-95.81566961,0.00012,2]
[334969473,1723690323333,-217.17304257,0.00010026,2]
[334969474,1723690430537,287.05036662,9.926e-05,2]
[334969475,1723690430559,245.66033338,9.926e-05,2]
[334969476,1723690596444,207.7,0.00027,120]
[334969477,1723690642640,314.44984155,0.00012031,120]
[334969478,1723690689564,400.0,0.00026551,120]
[334969479,1723690702640,209.6332277,0.00017,120]
[334969480,1723690752658,174.69435642,0.00020606,120]
[334969481,1723690812640,174.69435642,0.00024977,120]
[334969482,1723690941790,781.0,0.00027,120]
[334969485,1723691431895,-649.92257342,0.00010471,2]
[334969486,1723691431905,-255.72389359,0.00010471,2]
[334969487,1723691431915,-206.90476332,0.00010505,2]
[334969488,1723691431924,-357.4813523,0.00010505,2]
[334969490,1723691431933,-155.0,0.00010505,2]
[334969491,1723691431943,-1006.06741737,0.00010565,2]
[334969494,1723691431954,-6609.99999997,0.00010565,2]
[334969496,1723691431965,-453.15430131,0.00010565,2]
[334969498,1723691431976,-439.35,0.00010565,2]
[334969500,1723691431988,-8406.33779934,0.00010565,2]
[334969502,1723691431997,-155.0,0.00010713,2]
[334969504,1723691432007,-7560.3079,0.00010762,2]
[334969506,1723691432016,-401.51974171,0.000108,2]
[334969508,1723691432026,-15484.26437761,0.00010861,2]
[334969510,1723691432036,-10534.95166335,0.00010888,2]
[334969512,1723691432046,-150.0,0.00010948,2]
[334969514,1723691432056,-499.99,0.00010949,2]
[334969516,1723691432067,-599.48,0.00010998,2]
[334969518,1723691432077,-250.0,0.00011,2]
[334969520,1723691432086,-255.0,0.00011988,2]
[334969522,1723691432096,-155.06312979,0.00012,2]
[334969524,1723691432106,-1074.78314637,0.00012126,2]
[334969526,1723691432115,-494.58251232,0.00012613,2]
[334969528,1723691432125,-1139.21329126,0.00012938,2]
[334969530,1723691432135,-688.38196876,0.00012938,2]
[334969532,1723691432145,-347.72579691,0.00012966,2]
[334969533,1723691432155,-485.22914892,0.00012966,2]
[334969534,1723691432164,-1257.62857871,0.00014235,2]
[334969535,1723691432173,-1433.09887337,0.00014681,2]
[334969536,1723691432183,-553.54866205,0.00016,50]
[334969537,1723691432193,-161.37,0.0001632,2]
[334969538,1723691432203,-1764.72554699,0.000165,2]
[334969539,1723691432214,-172.2,0.0001753,2]
[334969540,1723691432224,-6999.993,0.0001753,2]
[334969541,1723691432234,-1000.0,0.00018172,2]
[334969542,1723691432243,-267.21,0.00018218,2]
[334969543,1723691432252,-200.0,0.00018245,2]
[334969544,1723691432261,-23900.0,0.00018299,2]
[334969545,1723691432271,-250.0,0.00018332,2]
[334969546,1723691432280,-919.78,0.00018364,2]
[334969547,1723691432291,-10115.08,0.00018533,2]
[334969548,1723691432300,-161.37,0.00018584,2]
[334969549,1723691432309,-177.04,0.00018674,2]
[334969550,1723691432319,-155.82819969,0.00019,2]
[334969551,1723691432329,-250.0,0.00019158,2]
[334969552,1723691432338,-400.0,0.0001931,2]
[334969553,1723691432348,-10000.0,0.00019585,2]
[334969554,1723691432357,-14719.4,0.00020081,2]
[334969555,1723691432367,-1000.0,0.00020444,2]
[334969556,1723691432377,-161.37,0.00020848,2]
[334969557,1723691432386,-400.0,0.00021723,2]
[334969558,1723691432396,-363.07,0.00021918,2]
[334969559,1723691432405,-150.0,0.00021918,2]
[334969560,1723691432415,-155.55337086,0.00022,2]
[334969561,1723691432424,-720.79850322,0.00022,2]
[334969562,1723691432434,-3000.0,0.000222,2]
[334969563,1723691432445,-150.0,0.00022495,2]
[334969564,1723691432455,-900.19534692,0.00022578,2]
[334969565,1723691432465,-1000.0,0.00022715,2]
[334969566,1723691432475,-152.0,0.00022751,3]
[334969567,1723691432485,-150.0,0.00023071,2]
[334969568,1723691432495,-1850.35333446,0.00023105,2]
[334969569,1723691432506,-161.37,0.00023112,2]
[334969570,1723691432515,-11815.82246693,0.00023156,2]
[334969571,1723691432525,-180.0,0.00023205,2]
[334969572,1723691432534,-1850.35333438,0.0002326,2]
[334969573,1723691432543,-1850.35333438,0.00023415,2]
[334969574,1723691432553,-1850.35333438,0.0002357,2]
[334969575,1723691432562,-150.0,0.00023648,2]
[334969576,1723691432571,-420.36124782,0.00023656,2]
[334969577,1723691432581,-388.08478933,0.0002367,2]
[334969578,1723691432590,-150.33,0.00023671,2]
[334969579,1723691432599,-150.58,0.00023671,2]
[334969580,1723691432608,-698.6315,0.0002368,2]
[334969581,1723691432618,-614.8959,0.0002368,2]
[334969582,1723691432627,-1269.4694,0.0002368,2]
[334969583,1723691432636,-400.0,0.000237,8]
[334969584,1723691432646,-1850.35333438,0.00023725,2]
[334969585,1723691432656,-162.51804143,0.0002378,2]
[334969586,1723691432665,-3041.1155,0.0002378,2]
[334969587,1723691432675,-5114.2263,0.0002378,2]
[334969588,1723691432684,-2500.0,0.0002378,2]
[334969589,1723691432693,-800.0,0.000238,8]
[334969590,1723691432703,-933.0,0.00023814,2]
[334969591,1723691432712,-203.97040194,0.00023867,2]
[334969592,1723691432722,-500.0,0.00023867,2]
[334969593,1723691432731,-500.0,0.00023867,2]
[334969594,1723691432741,-500.0,0.00023867,2]
[334969595,1723691432750,-500.0,0.00023867,2]
[334969596,1723691432760,-500.0,0.00023867,2]
[334969597,1723691432769,-381.4274,0.00023867,2]
[334969598,1723691432779,-500.0,0.00023867,2]
[334969599,1723691432790,-500.0,0.00023867,2]
[334969600,1723691432799,-500.0,0.00023867,2]
[334969601,1723691432808,-500.0,0.00023867,2]
[334969602,1723691432817,-500.0,0.00023867,2]
[334969603,1723691432827,-500.0,0.00023867,2]
[334969604,1723691432837,-500.0,0.00023867,2]
[334969605,1723691432846,-500.0,0.00023867,2]
[334969606,1723691432856,-503.1563,0.00023867,2]
[334969607,1723691432866,-139458.114892,0.0002387,4]
[334969608,1723691432876,-152.29,0.0002387,2]
[334969609,1723691432885,-152.29,0.0002387,2]
[334969610,1723691432894,-153.80344518,0.00023878,2]
[334969611,1723691432904,-151.0,0.0002388,7]
[334969612,1723691432914,-151.0,0.0002388,7]
[334969613,1723691432923,-151.939282,0.0002388,7]
[334969614,1723691432932,-151.0,0.0002388,7]
[334969615,1723691432942,-155.012627,0.0002388,7]
[334969616,1723691432952,-151.0,0.0002388,7]
[334969617,1723691432961,-151.0,0.0002388,7]
[334969618,1723691432971,-279.525523,0.0002388,7]
[334969619,1723691432981,-151.0,0.0002388,7]
[334969620,1723691432990,-151.0,0.0002388,7]
[334969621,1723691433001,-151.0,0.0002388,7]
[334969622,1723691433011,-151.0,0.0002388,7]
[334969623,1723691433021,-151.0,0.0002388,7]
[334969624,1723691433030,-151.0,0.0002388,7]
[334969625,1723691433040,-151.0,0.0002388,7]
[334969626,1723691433050,-151.0,0.0002388,7]
[334969627,1723691433063,-208.278339,0.0002388,7]
[334969628,1723691433073,-151.0,0.0002388,7]
[334969629,1723691433083,-153.450408,0.0002388,7]
[334969630,1723691433092,-151.0,0.0002388,7]
[334969631,1723691433102,-151.0,0.0002388,7]
[334969632,1723691433111,-151.0,0.0002388,7]
[334969633,1723691433121,-151.0,0.0002388,7]
[334969634,1723691433131,-169.113408,0.0002388,7]
[334969635,1723691433142,-151.0,0.0002388,7]
[334969636,1723691433151,-151.0,0.0002388,7]
[334969637,1723691433161,-151.0,0.0002388,7]
[334969638,1723691433170,-895.767226,0.0002388,7]
[334969639,1723691433180,-895.767226,0.0002388,7]
[334969640,1723691433190,-895.767226,0.0002388,7]
[334969641,1723691433200,-151.0,0.0002388,7]
[334969642,1723691433209,-151.0,0.0002388,7]
[334969643,1723691433219,-151.0,0.0002388,7]
[334969644,1723691433229,-151.0,0.0002388,7]
[334969645,1723691433238,-151.0,0.0002388,7]
[334969646,1723691433247,-151.0,0.0002388,7]
[334969647,1723691433257,-1850.35333438,0.0002388,2]
[334969648,1723691433266,-152.55606,0.0002388,7]
[334969649,1723691433275,-344.431239,0.0002388,7]
[334969650,1723691433285,-344.431239,0.0002388,7]
[334969651,1723691433295,-344.431239,0.0002388,7]
[334969652,1723691433305,-344.431239,0.0002388,7]
[334969653,1723691433315,-151.0,0.0002388,7]
[334969654,1723691433325,-151.0,0.0002388,7]
[334969655,1723691433334,-56814.15775235,0.0002388,2]
[334969656,1723691433347,-8204.41474252,0.0002388,2]
[334969665,1723691440117,-155.08529296,0.00010566,2]
[334969666,1723691440127,-142.85470704,0.0002388,2]
[334969717,1723691443664,-340.47272678,0.0002378,2]
[334969718,1723691443674,-244.34727322,0.0002388,2]
[334969720,1723691446115,-3200.56675512,0.0002388,2]
[334969728,1723691728198,200.0,0.00026824,120]
[334969729,1723691790660,507.46,0.0001,2]
[334969731,1723692284124,200.0,0.00026304,120]
[334969737,1723692632208,-270.54903608,0.0001089,2]
[334969738,1723692632218,-3937.52075365,0.00010979,2]
[334969739,1723692632228,-365.025,0.000123,2]
[334969740,1723692632237,-240.17,0.00013,2]
[334969741,1723692632246,-155.0,0.00013086,2]
[334969742,1723692632257,-93.51688169,0.00013292,2]
[334969743,1723692638390,-61.48311831,0.00013292,2]
[334969744,1723692638400,-401.51974171,0.00013698,2]
[334969745,1723692638410,-152.16,0.00013973,2]
[334969746,1723692638419,-305.73,0.00013973,2]
[334969747,1723692638429,-560.4,0.00018,7]
[334969748,1723692638439,-859.0,0.000181,3]
[334969749,1723692638449,-153.45,0.00019138,2]
[334969750,1723692638458,-305.73,0.00020447,2]
[334969751,1723692638468,-123.77713998,0.00020961,2]
[334969752,1723692638480,-126.22286002,0.00020961,2]
[334969753,1723692638494,-267.21,0.00021034,2]
[334969754,1723692638503,-200.0,0.00021043,2]
[334969755,1723692638514,-3852.54903392,0.00021229,2]
[334969759,1723692640064,-298.57312534,0.00021229,2]
[334969760,1723692640261,-1028.443,0.00021229,2]
[334969761,1723692640273,-660.13498895,0.00021229,2]
[334969762,1723692640284,-270.12980792,0.00021229,2]
[334969763,1723692640296,-2435.38767799,0.00021229,2]
[334969764,1723692640308,-576.925,0.00021229,2]
[334970005,1723692642986,-725.26640477,0.00021229,2]
[334970042,1723692643337,-316.220239,0.00021229,2]
[334970045,1723692643348,-1760.52072211,0.00021229,2]
[334970047,1723692643358,-172.2,0.00021292,2]
[334970049,1723692643367,-200.0,0.00021459,2]
[334970052,1723692643376,-1000.0,0.00021495,2]
[334970055,1723692643386,-153.45,0.00021528,2]
[334970057,1723692643395,-302.55,0.00021918,2]
[334970059,1723692643404,-150.0,0.00021918,2]
[334970061,1723692643414,-2015.00513597,0.00022,2]
[334970063,1723692643425,-701.11,0.00022,2]
[334970313,1723692646205,-2544.01325688,0.00022,2]
[334970314,1723692646389,-895.73293621,0.00022,2]
[334970315,1723692646401,-1973.60967681,0.00022,2]
[334970316,1723692646413,-2356.43045917,0.00022,2]
[334970317,1723692646425,-1509.27385393,0.00022,2]
[334970318,1723692646560,-82.05239967,0.00022,2]
[334970319,1723692646574,-172.03353031,0.000222,2]
[334970320,1723692646587,-2827.96646969,0.000222,2]
[334970321,1723692646598,-82.59163678,0.00022495,2]
[334970322,1723692646610,-67.40836322,0.00022495,2]
[334970323,1723692646620,-480.34,0.000229,14]
[334970324,1723692646629,-150.0,0.00023071,2]
[334970325,1723692646639,-180.0,0.00023205,2]
[334970326,1723692646649,-12.45163678,0.00023648,2]
[334970327,1723692646663,-137.54836322,0.00023648,2]
[334970328,1723692646674,-141.85663678,0.00023672,2]
[334970398,1723692761624,550.0,0.0001,2]
[334970400,1723692858157,160.0,0.00024968,120]
[334970409,1723693417011,152.0,0.00026966,120]
[334970417,1723693838306,-155.0,0.00010799,2]
[334970418,1723693838318,-150.0,0.00013,2]
[334970419,1723693838327,-155.0,0.00013086,2]
[334970420,1723693838337,-401.51974171,0.00013688,2]
[334970421,1723693838347,-194.66,0.00013973,2]
[334970422,1723693838356,-1003.86570529,0.00017699,2]
[334970423,1723693838367,-150.0,0.00017973,2]
[334970424,1723693838376,-170.25,0.00018,7]
[334970425,1723693838386,-300.0,0.00018199,2]
[334970426,1723693838395,-2436.0,0.000182,3]
[334970427,1723693838405,-155.52,0.00019658,2]
[334970428,1723693838414,-160.0,0.00019975,2]
[334970429,1723693838424,-420.0,0.00020019,2]
[334970430,1723693838433,-3940.15,0.00020586,2]
[334970431,1723693838443,-250.0,0.00020604,2]
[334970432,1723693838452,-500.0,0.00020634,2]
[334970433,1723693838461,-172.62,0.00020681,2]
[334970434,1723693838471,-184.65,0.00020748,2]
[334970435,1723693838480,-2370.1,0.00020883,2]
[334970436,1723693838501,-1249.29,0.00020957,2]
[334970437,1723693838514,-873.79,0.00021013,2]
[334970438,1723693838523,-309.14,0.00021099,2]
[334970439,1723693838533,-23900.0,0.0002146,2]
[334970440,1723693838542,-1299.46,0.00021481,2]
[334970441,1723693838552,-396.07,0.00021573,2]
[334970442,1723693838561,-152.0,0.00021573,2]
[334970443,1723693838571,-1000.0,0.00021576,2]
[334970444,1723693838588,-500.0,0.0002161,2]
[334970445,1723693838597,-200.0,0.00021643,2]
[334970446,1723693838607,-10988.46,0.00021793,2]
[334970447,1723693838617,-1426.0,0.000219,2]
[334970448,1723693838626,-252.12,0.00021918,2]
[334970449,1723693838635,-150.0,0.00021918,2]
[334970450,1723693838645,-155.52,0.00022048,2]
[334970451,1723693838655,-3000.0,0.000222,2]
[334970452,1723693838665,-160.0,0.00022471,2]
[334970453,1723693838675,-150.0,0.00022495,2]
[334970454,1723693838684,-1000.0,0.0002262,2]
[334970455,1723693838693,-150.0,0.00023071,2]
[334970456,1723693838703,-1764.72554699,0.00023199,2]
[334970457,1723693838713,-1764.72554699,0.00023199,2]
[334970458,1723693838722,-180.0,0.00023205,2]
[334970459,1723693838731,-213.3833,0.000236,2]
[334970460,1723693838741,-1000.0,0.000236,2]
[334970461,1723693838751,-1156.6175,0.000236,2]
[334970462,1723693838770,-150.0,0.00023648,2]
[334970463,1723693838779,-158.95336322,0.00023672,2]
[334970464,1723693838788,-500.0,0.00023672,2]
[334970465,1723693838799,-152.25,0.00023674,2]
[334970466,1723693838808,-200.0,0.00023674,2]
[334970467,1723693838818,-1919.5043,0.0002368,2]
[334970468,1723693838827,-39168.4507,0.000237,2]
[334970469,1723693838837,-28803.49600606,0.000237,2]
[334970485,1723693840298,-265.8799,0.000237,2]
[334970597,1723693846305,-401.51974171,0.00013391,2]
[334970598,1723693846315,-598.48025829,0.000237,2]
[334970599,1723693890760,244.8,0.00025646,120]
[334970600,1723694121689,155.0,0.00010026,2]
[334970623,1723694563942,349.22340919,0.0001,2]
[334970624,1723694563967,200.77659081,0.0001,2]
[334970625,1723694581839,150.80313489,0.00027,120]
[334970626,1723694962447,160.0,0.00026818,120]
[334970627,1723695013470,500.0,0.00027,120]
[334970637,1723695032205,-342.86422612,0.000107,2]
[334970638,1723695032217,-155.1759117,0.00010861,2]
[334970640,1723695032229,-15484.26437761,0.00010888,2]
[334970642,1723695032238,-300.0,0.00010898,2]
[334970644,1723695032248,-43911.56985219,0.00010899,2]
[334970645,1723695032257,-155.27090905,0.00010899,2]
[334970646,1723695032267,-270.60181535,0.00010979,2]
[334970647,1723695032276,-5408.22812288,0.00010999,2]
[334970648,1723695032285,-250.0,0.00011,2]
[334970649,1723695032295,-150.0,0.00011988,2]
[334970650,1723695032306,-420.0,0.00011988,2]
[334970651,1723695032316,-18591.778522,0.00011989,2]
[334970652,1723695032325,-150.99,0.00011989,2]
[334970653,1723695032335,-9999.99,0.00011989,2]
[334970654,1723695032345,-2386.36839346,0.00011999,2]
[334970655,1723695032355,-150.99,0.00011999,2]
[334970656,1723695032364,-5000.0,0.00012,2]
[334970657,1723695032374,-2500.0,0.00012053,2]
[334970658,1723695032383,-1332.24,0.00012053,2]
[334970659,1723695032395,-2111.63219542,0.00012613,2]
[334970660,1723695032404,-2841.34337643,0.00012938,2]
[334970661,1723695032414,-2506.41903011,0.00012938,2]
[334970662,1723695032424,-1357.90185026,0.00012938,2]
[334970663,1723695032435,-1739.7277323,0.00013001,2]
[334970664,1723695032445,-1500.0,0.00013001,2]
[334970665,1723695032455,-687.08646626,0.00013042,2]
[334970666,1723695032465,-155.0,0.00013052,2]
[334970667,1723695032476,-218.92791442,0.00013052,2]
[334970668,1723695032486,-159.62357463,0.00013052,2]
[334970669,1723695032495,-155.0,0.00013052,2]
[334970670,1723695032504,-1298.34223089,0.00013052,2]
[334970671,1723695032515,-892.62032859,0.00013052,2]
[334970673,1723695032527,-255.0,0.00013067,2]
[334970674,1723695032536,-203.42899612,0.00013086,2]
[334970676,1723695032545,-164.70883604,0.00013086,2]
[334970679,1723695032559,-1139.21329126,0.00013086,2]
[334970681,1723695032568,-236.36319912,0.00013086,2]
[334970683,1723695032579,-367.83900343,0.00013086,2]
[334970685,1723695032589,-157.71824926,0.00013086,2]
[334970687,1723695032600,-628.70277812,0.00013086,2]
[334970689,1723695032610,-432.5166998,0.00013086,2]
[334970691,1723695032619,-155.0,0.00013086,2]
[334970693,1723695032630,-197.1552014,0.00013086,2]
[334970694,1723695032639,-587.0,0.00013187,2]
[334970696,1723695032649,-164.41632778,0.00013292,2]
[334970698,1723695032659,-155.36428366,0.00013292,2]
[334970699,1723695032669,-155.0,0.00013391,2]
[334970700,1723695032680,-155.35418992,0.00013391,2]
[334970701,1723695032689,-319.38158331,0.00013391,2]
[334970702,1723695032699,-528.96350263,0.00013688,2]
[334970703,1723695032708,-401.51974171,0.00013698,2]
[334970704,1723695032717,-401.51974171,0.00013698,2]
[334970705,1723695032727,-155.0,0.00013698,2]
[334970706,1723695032736,-155.0,0.00013698,2]
[334970707,1723695032745,-152.16,0.00013973,2]
[334970708,1723695032754,-2500.0,0.00014134,2]
[334970709,1723695032764,-433.0,0.00014242,2]
[334970710,1723695032774,-649.92257342,0.00014398,2]
[334970711,1723695032783,-3937.52075365,0.00014398,2]
[334970712,1723695032793,-10534.95166335,0.00014509,2]
[334970713,1723695032802,-499.99,0.00014517,2]
[334970714,1723695032811,-299.99,0.00014517,2]
[334970715,1723695032821,-192.47075282,0.00014517,2]
[334970716,1723695032830,-155.12147331,0.00014681,2]
[334970717,1723695032840,-155.0,0.00014782,2]
[334970718,1723695032849,-162.75,0.00017013,2]
[334970719,1723695032858,-151.0,0.00017524,2]
[334970720,1723695032867,-275.544992,0.00017524,2]
[334970721,1723695032876,-151.0,0.00017524,2]
[334970722,1723695032885,-275.544992,0.00017524,2]
[334970723,1723695032895,-566.92,0.00017524,2]
[334970724,1723695032904,-250.0,0.00017648,2]
[334970725,1723695032913,-9245.59,0.00017663,2]
[334970726,1723695032923,-151.0,0.00017663,2]
[334970727,1723695032932,-150.0,0.00017731,2]
[334970728,1723695032942,-160.0,0.00017879,2]
[334970729,1723695032952,-1356.6,0.00017899,2]
[334970730,1723695032962,-2322.75506355,0.000179,2]
[334970731,1723695032971,-8728.99,0.00018054,2]
[334970732,1723695032981,-661.57,0.0001806,2]
[334970733,1723695032991,-250.0,0.0001806,2]
[334970734,1723695033000,-151.0,0.000181,2]
[334970735,1723695033009,-2322.75506347,0.00018633,2]
[334970736,1723695033018,-329.27,0.00019171,2]
[334970737,1723695033027,-162.75,0.00019277,2]
[334970738,1723695033037,-2322.75506347,0.00019367,2]
[334970739,1723695033047,-151.0,0.00019408,2]
[334970740,1723695033056,-151.0,0.00019408,2]
[334970741,1723695033066,-222.297474,0.00019408,2]
[334970742,1723695033075,-222.297474,0.00019408,2]
[334970743,1723695033085,-151.0,0.00019408,2]
[334970744,1723695033095,-920.577954,0.00019408,2]
[334970745,1723695033104,-920.577954,0.00019408,2]
[334970746,1723695033113,-244.8,0.00019408,2]
[334970747,1723695033123,-2322.75506347,0.000201,2]
[334970748,1723695033132,-151.0,0.00020116,2]
[334970749,1723695033141,-151.0,0.00020116,2]
[334970750,1723695033150,-152.14727,0.00020116,2]
[334970751,1723695033160,-151.0,0.00020116,2]
[334970752,1723695033169,-151.0,0.00020116,2]
[334970753,1723695033178,-151.0,0.00020116,2]
[334970754,1723695033188,-151.0,0.00020116,2]
[334970755,1723695033198,-151.0,0.00020116,2]
[334970756,1723695033207,-194.18,0.00020357,2]
[334970757,1723695033216,-172.61,0.00020595,2]
[334970758,1723695033228,-172.1,0.0002061,2]
[334970759,1723695033237,-2322.75506347,0.00020833,2]
[334970760,1723695033246,-151.0,0.00020959,2]
[334970761,1723695033255,-195.37663,0.00020959,2]
[334970762,1723695033266,-151.0,0.00020959,2]
[334970763,1723695033275,-151.0,0.00020959,2]
[334970764,1723695033285,-260.876048,0.00020959,2]
[334970765,1723695033294,-1000.0,0.00021044,2]
[334970766,1723695033304,-749.37644773,0.00021093,2]
[334970767,1723695033314,-162.75,0.00021541,2]
[334970768,1723695033324,-2322.75506347,0.00021567,2]
[334970769,1723695033333,-210.1,0.00021918,2]
[334970770,1723695033342,-150.0,0.00021918,2]
[334970771,1723695033351,-151.0,0.00021918,2]
[334970772,1723695033360,-151.0,0.00021918,7]
[334970773,1723695033370,-1001.937361,0.00022,2]
[334970774,1723695033379,-150.54979553,0.00022019,2]
[334970775,1723695033388,-151.0,0.00022178,7]
[334970776,1723695033397,-151.0,0.00022178,7]
[334970777,1723695033406,-151.0,0.00022178,7]
[334970778,1723695033415,-151.0,0.00022178,7]
[334970779,1723695033424,-176.774099,0.00022178,7]
[334970780,1723695033434,-222.297474,0.00022178,7]
[334970781,1723695033444,-222.297474,0.00022178,7]
[334970782,1723695033453,-151.0,0.00022178,7]
[334970783,1723695033463,-275.544992,0.00022178,7]
[334970784,1723695033472,-151.0,0.00022178,7]
[334970785,1723695033482,-275.544992,0.00022178,7]
[334970786,1723695033491,-9490.8,0.00022178,2]
[334970787,1723695033501,-1500.0,0.000222,2]
[334970788,1723695033511,-151.0,0.000222,7]
[334970789,1723695033521,-920.577954,0.000222,7]
[334970790,1723695033530,-920.577954,0.000222,7]
[334970791,1723695033539,-2322.75506347,0.000223,2]
[334970792,1723695033548,-150.0,0.00022495,2]
[334970793,1723695033558,-244.8,0.00022796,2]
[334970794,1723695033567,-382.69472281,0.00022878,2]